fUST/lending_fUST_20251212
["ID","MTS","AMOUNT","RATE_DAILY","PERIOD"]
[398350723,1765549840340,-635.0,0.000115,2]
[398350724,1765549840401,-5009.01328906,0.000115,2]
[398350725,1765549840412,-511.60544266,0.000115,2]
[398350726,1765549840423,-8552.6403,0.000115,2]
[398350727,1765549840435,-451.59621594,0.000115,2]
[398350728,1765549840446,-119804.42642712,0.000115,2]
[398350729,1765549840455,-300.0,0.000115,2]
[398350730,1765549840465,-238.12,0.000115,2]
[398350731,1765549840475,-300.0,0.00011571,2]
[398350732,1765549840484,-1200.0,0.00011572,2]
[398350733,1765549840493,-500.0,0.00011573,2]
[398350734,1765549840502,-500.0,0.00011573,2]
[398350735,1765549840512,-500.0,0.00011573,2]
[398350736,1765549840522,-500.0,0.00011573,2]
[398350737,1765549840531,-500.0,0.00011573,2]
[398350739,1765549840540,-500.0,0.00011573,2]
[398350741,1765549840549,-210.66863192,0.00011573,2]
[398350743,1765549840559,-500.0,0.00011573,2]
[398350745,1765549840568,-500.0,0.00011573,2]
[398350747,1765549840578,-540.35322811,0.00011573,2]
[398350749,1765549840588,-190.07429243,0.00011573,2]
[398350751,1765549840598,-171.214,0.00011573,2]
[398350753,1765549840607,-30675.93379042,0.00011574,2]
[398350754,1765549840619,-9204.3403412,0.00011574,2]
[398350789,1765549843329,-991.34010817,0.00011574,2]
[398350790,1765549843443,-187743.66378,0.00011574,2]
[398350791,1765549843770,-464.996769,0.00011574,2]
[398350792,1765549843782,-302.0,0.00011574,2]
[398350793,1765549843794,-1408.0930399,0.00011574,2]
[398350794,1765549843813,-491247.52249386,0.00011574,2]
[398350795,1765549843823,-500.0,0.00011574,2]
[398350796,1765549843832,-200.32273422,0.00011583,2]
[398350797,1765549843842,-238.12,0.000116,2]
[398350798,1765549843854,-238.12,0.000116,2]
[398350799,1765549843864,-600.0,0.00011635,2]
[398350800,1765549843873,-300.0,0.00011635,2]
[398350801,1765549843882,-300.0,0.00011635,2]
[398350802,1765549843892,-300.0,0.00011635,2]
[398350803,1765549843902,-300.0,0.00011635,2]
[398350804,1765549843913,-300.0,0.00011635,2]
[398350805,1765549843923,-300.0,0.00011635,2]
[398350806,1765549843934,-300.0,0.00011635,2]
[398350807,1765549843943,-300.0,0.00011635,2]
[398350808,1765549843953,-300.0,0.00011635,2]
[398350809,1765549843963,-300.0,0.00011635,2]
[398350810,1765549843973,-300.0,0.00011635,2]
[398350811,1765549843984,-300.0,0.00011635,2]
[398350812,1765549843994,-300.0,0.00011635,2]
[398350813,1765549844003,-300.0,0.00011635,2]
[398350814,1765549844013,-300.0,0.00011635,2]
[398350815,1765549844023,-500.0,0.00011643,2]
[398350816,1765549844032,-500.0,0.00011643,3]
[398350817,1765549844041,-500.0,0.00011643,4]
[398350818,1765549844051,-238.12,0.000117,2]
[398350819,1765549844061,-370.0,0.000118,2]
[398350820,1765549844070,-238.12,0.000118,2]
[398350821,1765549844079,-617.40005154,0.00011816,2]
[398350822,1765549844089,-500.0,0.00011848,2]
[398350823,1765549844100,-177.0,0.00011851,2]
[398350824,1765549844110,-238.12,0.000119,2]
[398350825,1765549844119,-415.0,0.00011932,2]
[398350826,1765549844128,-152.49478968,0.00011932,2]
[398350827,1765549844138,-151.44525487,0.00011932,2]
[398350828,1765549844147,-201.93567354,0.00011932,2]
[398350829,1765549844160,-150.0,0.00011932,2]
[398350830,1765549844170,-200.04063998,0.00011932,2]
[398350831,1765549844179,-500.0,0.00011932,2]
[398350832,1765549844189,-158.62231059,0.00011932,2]
[398350833,1765549844199,-209.26045105,0.00011941,2]
[398350834,1765549844209,-215.3804,0.00011941,2]
[398350835,1765549844218,-238.12,0.00012,2]
[398350836,1765549844230,-238.12,0.00012,2]
[398350837,1765549844239,-150.0,0.00012069,2]
[398350838,1765549844249,-500.0,0.00012069,2]
[398350839,1765549844259,-238.12,0.000121,2]
[398350840,1765549844269,-500.0,0.00012122,2]
[398350841,1765549844278,-238.12,0.000122,2]
[398350842,1765549844287,-500.0,0.00012203,5]
[398350843,1765549844297,-200.0,0.00012206,2]
[398350844,1765549844306,-500.0,0.00012206,2]
[398350845,1765549844316,-151.0,0.000123,2]
[398350846,1765549844326,-238.12,0.000123,2]
[398350847,1765549844335,-500.0,0.00012328,6]
[398350848,1765549844344,-151.0,0.00012329,2]
[398350849,1765549844354,-151.0,0.00012329,2]
[398350850,1765549844364,-152.399307,0.00012329,2]
[398350851,1765549844373,-151.0,0.00012329,2]
[398350852,1765549844383,-151.0,0.00012329,2]
[398350853,1765549844393,-151.0,0.00012329,2]
[398350854,1765549844402,-153.79402,0.00012329,2]
[398350855,1765549844411,-151.688009,0.00012329,2]
[398350856,1765549844420,-151.0,0.00012329,2]
[398350857,1765549844429,-151.0,0.00012329,2]
[398350858,1765549844439,-151.0,0.00012329,2]
[398350859,1765549844448,-193.207713,0.00012329,2]
[398350860,1765549844457,-151.0,0.00012329,2]
[398350861,1765549844467,-151.0,0.00012329,2]
[398350862,1765549844476,-153.418895,0.00012329,2]
[398350863,1765549844485,-151.0,0.00012329,2]
[398350864,1765549844496,-151.796592,0.00012329,2]
[398350865,1765549844506,-151.0,0.00012329,2]
[398350866,1765549844515,-151.0,0.00012329,2]
[398350867,1765549844524,-151.0,0.00012329,2]
[398350868,1765549844533,-151.0,0.00012329,2]
[398350869,1765549844543,-287.715144,0.00012329,2]
[398350870,1765549844552,-151.0,0.00012329,2]
[398350871,1765549844562,-151.0,0.00012329,2]
[398350872,1765549844571,-151.0,0.00012329,2]
[398350873,1765549844580,-151.0,0.00012329,2]
[398350874,1765549844590,-151.0,0.00012329,2]
[398350875,1765549844601,-151.0,0.00012329,2]
[398350876,1765549844610,-151.0,0.00012329,2]
[398350877,1765549844620,-151.0,0.00012329,2]
[398350878,1765549844629,-151.0,0.00012329,2]
[398350879,1765549844640,-151.0,0.00012329,2]
[398350880,1765549844649,-151.0,0.00012329,2]
[398350881,1765549844659,-451.735203,0.00012329,2]
[398350882,1765549844669,-451.735203,0.00012329,2]
[398350883,1765549844678,-451.735203,0.00012329,2]
[398350884,1765549844687,-451.735203,0.00012329,2]
[398350885,1765549844700,-451.735203,0.00012329,2]
[398350886,1765549844712,-451.735203,0.00012329,2]
[398350887,1765549844721,-451.735203,0.00012329,2]
[398350888,1765549844731,-451.735203,0.00012329,2]
[398350889,1765549844741,-151.0,0.00012329,2]
[398350890,1765549844751,-175.304852,0.00012329,2]
[398350891,1765549844761,-151.0,0.00012329,2]
[398350892,1765549844771,-151.0,0.00012329,2]
[398350893,1765549844781,-151.0,0.00012329,2]
[398350894,1765549844791,-151.0,0.00012329,2]
[398350895,1765549844805,-151.0,0.00012329,2]
[398350896,1765549844814,-151.0,0.00012329,2]
[398350897,1765549844824,-151.0,0.00012329,2]
[398350898,1765549844833,-151.0,0.00012329,2]
[398350899,1765549844843,-229.017571,0.00012329,2]
[398350900,1765549844853,-151.0,0.00012329,2]
[398350901,1765549844863,-180.306419,0.00012329,2]
[398350902,1765549844872,-151.0,0.00012329,2]
[398350903,1765549844882,-151.0,0.00012329,2]
[398350904,1765549844891,-151.0,0.00012329,2]
[398350905,1765549844900,-151.0,0.00012329,2]
[398350906,1765549844910,-151.0,0.00012329,2]
[398350907,1765549844920,-151.0,0.00012329,2]
[398350908,1765549844930,-273.344,0.00012329,2]
[398350909,1765549844940,-151.0,0.00012329,2]
[398350910,1765549844949,-151.0,0.00012329,2]
[398350911,1765549844959,-170.005765,0.00012329,2]
[398350912,1765549844968,-151.0,0.00012329,2]
[398350913,1765549844978,-151.0,0.00012329,2]
[398350914,1765549844988,-213.595615,0.00012329,2]
[398350915,1765549844997,-151.0,0.00012329,2]
[398350916,1765549845007,-151.0,0.00012329,2]
[398350917,1765549845016,-151.0,0.00012329,2]
[398350918,1765549845026,-151.0,0.00012329,2]
[398350919,1765549845035,-261.077384,0.00012329,2]
[398350920,1765549845045,-151.0,0.00012329,2]
[398350921,1765549845056,-263.554128,0.00012329,2]
[398350922,1765549845066,-151.0,0.00012329,2]
[398350923,1765549845077,-151.0,0.00012329,2]
[398350924,1765549845086,-151.0,0.00012329,2]
[398350925,1765549845096,-151.0,0.00012329,2]
[398350926,1765549845106,-173.991803,0.00012329,2]
[398350927,1765549845115,-180.530611,0.00012329,2]
[398350928,1765549845125,-151.0,0.00012329,2]
[398350929,1765549845135,-151.0,0.00012329,2]
[398350930,1765549845146,-151.0,0.00012329,2]
[398350931,1765549845160,-151.0,0.00012329,2]
[398350932,1765549845172,-156.517819,0.00012329,2]
[398350933,1765549845181,-451.735203,0.00012329,2]
[398350934,1765549845191,-451.735203,0.00012329,2]
[398350935,1765549845199,-451.735203,0.00012329,2]
[398350936,1765549845207,-451.735203,0.00012329,2]
[398350937,1765549845215,-451.735203,0.00012329,2]
[398350938,1765549845223,-451.735203,0.00012329,2]
[398350939,1765549845231,-451.735203,0.00012329,2]
[398350940,1765549845239,-451.735203,0.00012329,2]
[398350941,1765549845249,-451.735203,0.00012329,2]
[398350942,1765549845258,-451.735203,0.00012329,2]
[398350943,1765549845267,-451.735203,0.00012329,2]
[398350944,1765549845277,-451.735203,0.00012329,2]
[398350945,1765549845286,-151.0,0.00012329,2]
[398350946,1765549845295,-280.898345,0.00012329,2]
[398350947,1765549845305,-151.0,0.00012329,2]
[398350948,1765549845315,-151.0,0.00012329,2]
[398350949,1765549845324,-151.0,0.00012329,2]
[398350950,1765549845334,-151.0,0.00012329,2]
[398350951,1765549845344,-151.0,0.00012329,2]
[398350952,1765549845355,-151.0,0.00012329,2]
[398350953,1765549845364,-272.723793,0.00012329,2]
[398350954,1765549845373,-279.79986078,0.00012343,2]
[398350955,1765549845382,-700.0,0.0001236,2]
[398350956,1765549845392,-640.24385345,0.00012364,2]
[398350957,1765549845402,-700.0,0.00012395,2]
[398350958,1765549845411,-500.0,0.00012396,2]
[398350959,1765549845421,-238.12,0.000124,2]
[398350960,1765549845430,-238.12,0.000124,2]
[398350961,1765549845440,-151.0,0.000125,2]
[398350962,1765549845449,-238.12,0.000125,2]
[398350963,1765549845459,-238.12,0.000126,2]
[398350964,1765549845468,-700.0,0.00012617,2]
[398350965,1765549845479,-700.0,0.00012647,2]
[398350966,1765549845488,-500.0,0.0001267,2]
[398350967,1765549845498,-700.0,0.00012677,2]
[398350968,1765549845508,-151.0,0.000127,2]
[398350969,1765549845518,-238.12,0.000127,2]
[398350970,1765549845528,-420.0,0.00012708,2]
[398350971,1765549845539,-720.0,0.00012799,2]
[398350972,1765549845549,-238.12,0.000128,2]
[398350973,1765549845559,-700.0,0.00012804,2]
[398350974,1765549845568,-700.0,0.00012839,2]
[398350975,1765549845578,-151.0,0.000129,2]
[398350976,1765549845587,-238.12,0.000129,2]
[398350977,1765549845596,-238.12,0.000129,2]
[398350978,1765549845606,-663.93287602,0.00012912,2]
[398350979,1765549845615,-500.0,0.00012944,2]
[398350980,1765549845625,-700.0,0.00012944,2]
[398350981,1765549845634,-700.0,0.00012992,2]
[398350982,1765549845644,-500.0,0.00012998,7]
[398350983,1765549845653,-23185.04087831,0.00012999,2]
[398350984,1765549845663,-151.0,0.000131,2]
[398350985,1765549845672,-700.0,0.00013136,2]
[398350986,1765549845682,-700.0,0.00013187,2]
[398350987,1765549845691,-500.0,0.00013218,2]
[398350989,1765549845702,-700.0,0.00013227,2]
[398350990,1765549845718,-500.0,0.00013272,8]
[398350991,1765549845728,-500.0,0.00013273,2]
[398350992,1765549845737,-500.0,0.00013273,2]
[398350993,1765549845747,-500.0,0.00013273,2]
[398350994,1765549845756,-500.0,0.00013273,2]
[398350995,1765549845766,-500.0,0.00013273,2]
[398350996,1765549845776,-500.0,0.00013273,2]
[398350997,1765549845787,-263.47444706,0.00013273,2]
[398350998,1765549845797,-500.0,0.00013273,2]
[398350999,1765549845807,-500.0,0.00013273,2]
[398351000,1765549845816,-193.28406519,0.00013273,2]
[398351001,1765549845826,-500.0,0.00013273,2]
[398351002,1765549845836,-500.0,0.00013273,2]
[398351003,1765549845846,-500.0,0.00013273,2]
[398351004,1765549845856,-500.0,0.00013273,2]
[398351005,1765549846189,-500.0,0.00013273,2]
[398351006,1765549846201,-500.0,0.00013273,2]
[398351007,1765549846212,-500.0,0.00013273,2]
[398351008,1765549846221,-500.0,0.00013273,2]
[398351009,1765549846233,-500.0,0.00013273,2]
[398351010,1765549846243,-500.0,0.00013273,2]
[398351011,1765549846253,-500.0,0.00013273,2]
[398351012,1765549846263,-500.0,0.00013273,2]
[398351013,1765549846272,-500.0,0.00013273,2]
[398351014,1765549846282,-500.0,0.00013273,2]
[398351015,1765549846292,-500.0,0.00013273,2]
[398351016,1765549846302,-500.0,0.00013273,2]
[398351017,1765549846312,-500.0,0.00013273,2]
[398351018,1765549846321,-500.0,0.00013273,2]
[398351019,1765549846331,-795.43107,0.00013288,2]
[398351020,1765549846341,-151.0,0.000133,2]
[398351022,1765549846351,-688.49839244,0.0001346,2]
[398351024,1765549846360,-500.0,0.00013492,2]
[398351026,1765549846370,-151.0,0.000135,2]
[398351028,1765549846379,-3076.02404635,0.0001354,2]
[398351030,1765549846388,-700.0,0.00013546,2]
[398351032,1765549846397,-700.0,0.00013548,2]
[398351035,1765549846406,-209.4697115,0.00013668,2]
[398351038,1765549846416,-300.0,0.00013673,2]
[398351040,1765549846426,-500.0,0.00013697,9]
[398351042,1765549846438,-500.0,0.00013697,10]
[398351044,1765549846452,-500.0,0.00013698,2]
[398351046,1765549846461,-629.02815423,0.00013698,2]
[398351047,1765549846470,-500.0,0.00013698,2]
[398351048,1765549846480,-500.0,0.00013698,2]
[398351049,1765549846489,-500.0,0.00013698,2]
[398351050,1765549846499,-500.0,0.00013698,2]
[398351051,1765549846509,-500.0,0.00013698,2]
[398351052,1765549846519,-500.0,0.00013698,11]
[398351053,1765549846528,-620.35315399,0.00013698,12]
[398351054,1765549846538,-500.0,0.00013698,2]
[398351055,1765549846548,-500.0,0.00013698,2]
[398351056,1765549846557,-500.0,0.00013698,2]
[398351057,1765549846567,-500.0,0.00013698,2]
[398351058,1765549846577,-500.0,0.00013698,2]
[398351059,1765549846586,-500.0,0.00013698,2]
[398351060,1765549846596,-500.0,0.00013698,2]
[398351061,1765549846606,-500.0,0.00013698,2]
[398351062,1765549846616,-833.25,0.00013698,2]
[398351064,1765549846627,-833.25,0.00013698,2]
[398351065,1765549846636,-833.25,0.00013698,2]
[398351066,1765549846646,-833.25,0.00013698,2]
[398351067,1765549846656,-833.25,0.00013698,2]
[398351068,1765549846666,-833.25,0.00013698,2]
[398351069,1765549846675,-833.25,0.00013698,2]
[398351070,1765549846684,-833.25,0.00013698,2]
[398351071,1765549846694,-833.25,0.00013698,2]
[398351072,1765549846704,-833.25,0.00013698,2]
[398351073,1765549846713,-833.25,0.00013698,2]
[398351074,1765549846723,-833.25,0.00013698,2]
[398351075,1765549846732,-833.25,0.00013698,2]
[398351076,1765549846742,-833.25,0.00013698,2]
[398351077,1765549846751,-833.25,0.00013698,2]
[398351078,1765549846760,-833.25,0.00013698,2]
[398351079,1765549846770,-833.25,0.00013698,2]
[398351080,1765549846779,-833.25,0.00013698,2]
[398351081,1765549846789,-833.25,0.00013698,2]
[398351082,1765549846798,-833.25,0.00013698,2]
[398351083,1765549846807,-833.25,0.00013698,2]
[398351084,1765549846817,-833.25,0.00013698,2]
[398351085,1765549846827,-833.25,0.00013698,2]
[398351086,1765549846836,-833.25448987,0.00013698,2]
[398351087,1765549846846,-1000.0,0.00013699,2]
[398351088,1765549846856,-1500.0,0.00013699,2]
[398351089,1765549846866,-12846.7272755,0.00013699,2]
[398351090,1765549846875,-4380.429199,0.00013699,2]
[398351091,1765549846884,-500.0,0.00013699,2]
[398351092,1765549846894,-500.0,0.00013699,2]
[398351093,1765549846903,-500.0,0.00013699,2]
[398351094,1765549846913,-495.11861338,0.00013699,2]
[398351095,1765549846922,-500.0,0.00013699,2]
[398351096,1765549846931,-500.0,0.00013699,2]
[398351097,1765549846941,-500.0,0.00013699,2]
[398351098,1765549846951,-500.0,0.00013699,2]
[398351099,1765549846960,-500.0,0.00013699,2]
[398351100,1765549846969,-500.0,0.00013699,2]
[398351101,1765549846979,-500.0,0.00013699,2]
[398351102,1765549846988,-500.0,0.00013699,2]
[398351103,1765549846998,-500.0,0.00013699,2]
[398351104,1765549847007,-500.0,0.00013699,2]
[398351105,1765549847019,-500.0,0.00013699,2]
[398351106,1765549847031,-500.0,0.00013699,2]
[398351107,1765549847041,-500.0,0.00013699,2]
[398351108,1765549847050,-500.0,0.00013699,2]
[398351109,1765549847060,-508.04206109,0.00013699,2]
[398351110,1765549847069,-500.0,0.00013699,2]
[398351111,1765549847078,-500.0,0.00013699,2]
[398351112,1765549847088,-500.0,0.00013699,2]
[398351113,1765549847097,-500.0,0.00013699,2]
[398351114,1765549847107,-500.0,0.00013699,2]
[398351115,1765549847116,-500.0,0.00013699,2]
[398351116,1765549847126,-500.0,0.00013699,2]
[398351117,1765549847135,-500.0,0.00013699,2]
[398351118,1765549847145,-500.0,0.00013699,2]
[398351119,1765549847159,-500.0,0.00013699,2]
[398351120,1765549847168,-500.0,0.00013699,2]
[398351121,1765549847178,-500.0,0.00013699,2]
[398351122,1765549847187,-500.0,0.00013699,2]
[398351123,1765549847196,-500.0,0.00013699,2]
[398351124,1765549847206,-500.0,0.00013699,2]
[398351125,1765549847215,-500.0,0.00013699,2]
[398351126,1765549847224,-500.0,0.00013699,2]
[398351127,1765549847233,-500.0,0.00013699,2]
[398351128,1765549847241,-198.00196637,0.00013699,2]
[398351129,1765549847250,-500.0,0.00013699,2]
[398351130,1765549847259,-500.0,0.00013699,2]
[398351131,1765549847268,-500.0,0.00013699,2]
[398351132,1765549847277,-500.0,0.00013699,2]
[398351133,1765549847287,-500.0,0.00013699,2]
[398351134,1765549847295,-500.0,0.00013699,2]
[398351135,1765549847305,-500.0,0.00013699,2]
[398351136,1765549847314,-500.0,0.00013699,2]
[398351137,1765549847324,-500.0,0.00013699,2]
[398351138,1765549847333,-500.0,0.00013699,2]
[398351139,1765549847342,-500.0,0.00013699,2]
[398351140,1765549847352,-500.0,0.00013699,2]
[398351141,1765549847361,-500.0,0.00013699,2]
[398351142,1765549847370,-500.0,0.00013699,2]
[398351143,1765549847380,-500.0,0.00013699,2]
[398351144,1765549847389,-469.55907764,0.00013699,2]
[398351145,1765549847399,-500.0,0.00013699,2]
[398351146,1765549847408,-500.0,0.00013699,2]
[398351147,1765549847418,-500.0,0.00013699,2]
[398351148,1765549847428,-500.0,0.00013699,2]
[398351149,1765549847438,-160.0,0.00013699,2]
[398351150,1765549847450,-500.0,0.00013766,2]
[398351151,1765549847459,-1000.0,0.00013821,2]
[398351152,1765549847468,-1000.0,0.00013821,2]
[398351153,1765549847477,-981.7502719,0.00013821,2]
[398351154,1765549847487,-1000.0,0.00013821,2]
[398351155,1765549847496,-961.59723464,0.00013821,2]
[398351156,1765549847505,-1000.0,0.00013821,2]
[398351157,1765549847514,-1000.0,0.00013821,2]
[398351158,1765549847523,-1000.0,0.00013821,2]
[398351159,1765549847532,-1000.0,0.00013821,2]
[398351160,1765549847541,-1000.0,0.00013821,2]
[398351161,1765549847550,-1000.0,0.00013821,2]
[398351162,1765549847560,-1000.0,0.00013821,2]
[398351163,1765549847569,-1000.0,0.00013821,2]
[398351164,1765549847578,-1000.0,0.00013821,2]
[398351165,1765549847587,-1000.0,0.00013821,2]
[398351166,1765549847596,-1000.0,0.00013821,2]
[398351167,1765549847607,-1000.0,0.00013821,2]
[398351168,1765549847616,-1000.0,0.00013821,2]
[398351169,1765549847625,-1000.0,0.00013821,2]
[398351170,1765549847635,-1000.0,0.00013821,2]
[398351171,1765549847644,-1000.0,0.00013821,2]
[398351172,1765549847653,-1000.0,0.00013821,2]
[398351173,1765549847662,-1000.0,0.00013821,2]
[398351174,1765549847671,-1000.0,0.00013821,2]
[398351175,1765549847680,-1000.0,0.00013821,2]
[398351176,1765549847690,-1000.0,0.00013821,2]
[398351177,1765549847699,-204.0,0.00013851,2]
[398351178,1765549847709,-528.66867974,0.0001387,2]
[398351179,1765549847718,-700.0,0.00013916,2]
[398351180,1765549847728,-700.0,0.00013929,2]
[398351181,1765549847737,-700.0,0.00013958,2]
[398351182,1765549847746,-475.0,0.00013972,2]
[398351183,1765549847756,-475.0,0.00013972,2]
[398351184,1765549847766,-163.17055612,0.00013973,2]
[398351185,1765549847775,-713.97283296,0.00014008,2]
[398351186,1765549847784,-500.0,0.0001404,2]
[398351187,1765549847794,-700.0,0.00014071,2]
[398351188,1765549847803,-864.0,0.00014079,2]
[398351189,1765549847813,-700.0,0.00014143,2]
[398351190,1765549847822,-475.0,0.00014147,2]
[398351191,1765549847832,-475.0,0.00014147,2]
[398351192,1765549847841,-700.0,0.00014148,2]
[398351193,1765549847851,-600.0,0.00014221,2]
[398351194,1765549847861,-475.0,0.00014221,2]
[398351195,1765549847870,-475.0,0.00014221,2]
[398351196,1765549847880,-475.0,0.00014221,2]
[398351197,1765549847890,-783.85327747,0.00014247,2]
[398351198,1765549847899,-1000.0,0.00014247,2]
[398351199,1765549847908,-1000.0,0.00014247,2]
[398351200,1765549847919,-1000.0,0.00014247,2]
[398351201,1765549847929,-1000.0,0.00014247,2]
[398351202,1765549847940,-1000.0,0.00014247,2]
[398351203,1765549847950,-1000.0,0.00014247,2]
[398351204,1765549847960,-1000.0,0.00014247,2]
[398351205,1765549847970,-1000.0,0.00014247,2]
[398351206,1765549847979,-1000.0,0.00014247,2]
[398351207,1765549847989,-1000.0,0.00014247,2]
[398351208,1765549847998,-1000.0,0.00014247,2]
[398351209,1765549848007,-784.64455431,0.00014247,2]
[398351210,1765549848017,-163.79408364,0.00014247,2]
[398351211,1765549848026,-1000.0,0.00014247,2]
[398351212,1765549848036,-475.0,0.00014247,2]
[398351213,1765549848045,-475.0,0.00014247,2]
[398351214,1765549848054,-475.0,0.00014247,2]
[398351215,1765549848063,-260.0,0.00014247,2]
[398351216,1765549848072,-500.0,0.00014314,2]
[398351217,1765549848081,-1500.0,0.00014368,2]
[398351218,1765549848094,-1648.12972489,0.00014368,2]
[398351219,1765549848103,-1500.0,0.00014368,2]
[398351220,1765549848112,-1500.0,0.00014368,2]
[398351221,1765549848122,-1500.0,0.00014368,2]
[398351222,1765549848130,-1500.0,0.00014368,2]
[398351223,1765549848137,-1500.0,0.00014368,2]
[398351224,1765549848150,-1500.0,0.00014368,2]
[398351225,1765549848159,-1048.50020923,0.00014368,2]
[398351226,1765549848166,-734.81131868,0.00014368,2]
[398351227,1765549848174,-1500.0,0.00014368,2]
[398351228,1765549848183,-1500.0,0.00014368,2]
[398351229,1765549848192,-1500.0,0.00014368,2]
[398351230,1765549848201,-1500.0,0.00014368,2]
[398351231,1765549848211,-700.0,0.00014386,2]
[398351232,1765549848220,-700.0,0.00014438,2]
[398351233,1765549848231,-700.0,0.00014476,2]
[398351234,1765549848240,-740.38982778,0.00014556,2]
[398351235,1765549848250,-500.0,0.00014588,2]
[398351236,1765549848259,-700.0,0.00014595,2]
[398351237,1765549848269,-700.0,0.00014745,2]
[398351238,1765549848278,-900.0,0.00014768,2]
[398351239,1765549848288,-1500.0,0.00014795,2]
[398351240,1765549848297,-1639.80698152,0.00014795,2]
[398351241,1765549848307,-654.76780128,0.00014795,2]
[398351242,1765549848316,-1500.0,0.00014795,2]
[398351243,1765549848325,-1550.0059967,0.00014795,2]
[398351244,1765549848335,-284.09403884,0.00014795,2]
[398351245,1765549848345,-1500.0,0.00014795,2]
[398351246,1765549848356,-1500.0,0.00014795,2]
[398351247,1765549848365,-1500.0,0.00014795,2]
[398351248,1765549848375,-1500.0,0.00014795,2]
[398351249,1765549848385,-1500.0,0.00014795,2]
[398351250,1765549848395,-1500.0,0.00014795,2]
[398351251,1765549848405,-360.0,0.00014795,2]
[398351252,1765549848415,-500.0,0.00014862,2]
[398351253,1765549848425,-700.0,0.00014878,2]
[398351254,1765549848434,-2000.0,0.00014916,2]
[398351255,1765549848444,-2000.0,0.00014916,2]
[398351256,1765549848453,-2000.0,0.00014916,2]
[398351257,1765549848462,-2000.0,0.00014916,2]
[398351258,1765549848472,-2000.0,0.00014916,2]
[398351259,1765549848482,-2000.0,0.00014916,2]
[398351260,1765549848491,-2000.0,0.00014916,2]
[398351261,1765549848500,-2000.0,0.00014916,2]
[398351262,1765549848510,-2000.0,0.00014916,2]
[398351263,1765549848519,-2000.0,0.00014916,2]
[398351264,1765549848529,-2000.0,0.00014916,2]
[398351265,1765549848539,-415.0,0.00014932,2]
[398351266,1765549848548,-1088.87191592,0.00014983,2]
[398351267,1765549848557,-37100.0,0.00015,2]
[398351268,1765549848567,-948.0,0.00015,2]
[398351269,1765549848629,-401.0,0.00015,2]
[398351270,1765549848638,-542.0,0.00015,2]
[398351271,1765549848648,-100000.0,0.00015028,2]
[398351272,1765549848657,-499.624554,0.00015068,2]
[398351273,1765549848667,-800.0,0.00015068,2]
[398351274,1765549848676,-767.7842514,0.00015104,2]
[398351275,1765549848685,-500.0,0.00015136,2]
[398351276,1765549848694,-230.23804352,0.00015151,3]
[398351277,1765549848703,-1200.0,0.00015316,2]
[398351278,1765549848712,-460.0,0.00015342,2]
[398351279,1765549848722,-2000.0,0.00015342,2]
[398351280,1765549848731,-2000.0,0.00015342,2]